[Event "DVM U20w 2019"]
[Site "Braunschweig"]
[Date "2019.12.29"]
[Round "6"]
[White "Ziegenfuss, Larissa"]
[Black "Kiesel, Lara"]
[Result "0-1"]
[ECO "C07"]
[WhiteElo "1755"]
[BlackElo "1732"]
[Annotator "NA"]
[PlyCount "58"]
[EventDate "2019.12.27"]
[EventType "team-tourn"]
[EventRounds "7"]
[EventCountry "GER"]
[SourceTitle "playchess.com"]
[Source "ChessBase"]
[SourceQuality "1"]
[WhiteTeam "SG Blau-Weiß Stadtilm"]
[BlackTeam "SK Lehrte 1919"]
[TimeControl "40/5400+30:1800+30"]

1. e4 {[%emt 0:00:00]} e6 {[%emt 0:00:00]} 2. d4 {[%emt 0:00:00]} d5 {[%emt 0:00:00]} 3. Nd2 {[%emt 0:00:00]} c5 {[%emt 0:00:00]} 4. exd5 {[%emt 0:00:00]} Qxd5 {[%emt 0:00:00]} 5. Ngf3 {[%emt 0:00:06]} cxd4 {[%emt 0:00:00]} 6. Bc4 {[%emt 0:00:22]} Qd7 {[%emt 0:00:07]} 7. O-O {[%emt 0:00:37]} Nf6 {[%emt 0:00:04]} 8. Ne5 {[%emt 0:06:23]} Qc7 {[%emt 0:03:34]} 9. Qe2 {[%emt 0:02:17]} Bd6 {[%emt 0:06:16]} 10. f4 {[%emt 0:04:52]} O-O {[%emt 0:02:33]} 11. Ndf3 {[%emt 0:02:15]} Nbd7 {[%emt 0:05:27]} 12. Nxf7 {[%emt 0:19:37]} Rxf7 {[%emt 0:02:36]} 13. Bxe6 {[%emt 0:00:40]} Nb6 {[%emt 0:00:48]} 14. Bxf7+ {[%emt 0:02:48]} Qxf7 {[%emt 0:00:37]} 15. Ng5 {[%emt 0:04:52]} Qc4 {[%emt 0:04:35]} 16. Qxc4+ {[%emt 0:08:32]} Nxc4 {[%emt 0:00:06]} 17. b3 {[%emt 0:03:00]} Ne3 {[%emt 0:06:03]} 18. Bxe3 {[%emt 0:06:20]} dxe3 {[%emt 0:00:08]} 19. Rfd1 {[%emt 0:00:58]} Bc7 {[%emt 0:00:23]} 20. g3 {[%emt 0:04:35]} Bg4 {[%emt 0:07:20]} 21. Rdc1 {[%emt 0:01:57]} Bb6 {[%emt 0:18:27]} 22. Kg2 {[%emt 0:01:48]} Rd8 {[%emt 0:14:58]} 23. Nf3 {[%emt 0:01:47]} Bf5 {[%emt 0:02:29]} 24. c4 {[%emt 0:01:11]} Be4 {[%emt 0:01:46]} 25. Rd1 {[%emt 0:03:05]} Rd2+ {[%emt 0:00:55]} 26. Rxd2 {[%emt 0:00:22]} exd2 {[%emt 0:00:06]} 27. b4 {[%emt 0:02:05] normal} Be3 {[%emt 0:04:30] normal} 28. a4 {[%emt 0:02:35] normal} Ng4 {[%emt 0:02:15] normal} 29. h3 {[%emt 0:01:37] normal} Nf2 {[%emt 0:00:29] normal} 0-1

[Event "DVM U20w 2019"]
[Site "Braunschweig"]
[Date "2019.12.29"]
[Round "6"]
[White "Meijerink, Inken"]
[Black "Oberhofer, Marie"]
[Result "0-1"]
[ECO "B76"]
[WhiteElo "1743"]
[BlackElo "1700"]
[Annotator "NA"]
[PlyCount "52"]
[EventDate "2019.12.27"]
[EventType "team-tourn"]
[EventRounds "7"]
[EventCountry "GER"]
[SourceTitle "playchess.com"]
[Source "ChessBase"]
[SourceQuality "1"]
[WhiteTeam "SK Nordhorn-Blanke"]
[BlackTeam "SC Bavaria Regensburg"]
[TimeControl "40/5400+30:1800+30"]

1. e4 {[%emt 0:00:00]} c5 {[%emt 0:00:00]} 2. Nf3 {[%emt 0:00:00]} d6 {[%emt 0:00:00]} 3. d4 {[%emt 0:00:13]} cxd4 {[%emt 0:00:00]} 4. Nxd4 {[%emt 0:00:06]} Nf6 {[%emt 0:00:07]} 5. Nc3 {[%emt 0:00:10]} g6 {[%emt 0:00:09]} 6. f3 {[%emt 0:00:26]} Bg7 {[%emt 0:00:06]} 7. Be3 {[%emt 0:00:10]} O-O {[%emt 0:00:08]} 8. Qd2 {[%emt 0:00:12]} Nc6 {[%emt 0:00:05]} 9. g4 {[%emt 0:00:14]} Bd7 {[%emt 0:12:04]} 10. h4 {[%emt 0:00:19]} h5 {[%emt 0:00:34]} 11. gxh5 {[%emt 0:00:50]} Nxh5 {[%emt 0:00:08]} 12. Nce2 {[%emt 0:02:15]} Rc8 {[%emt 0:04:14]} 13. c3 {[%emt 0:02:28]} Ne5 {[%emt 0:02:08]} 14. Nf4 {[%emt 0:01:29]} Ng3 {[%emt 0:04:30]} 15. Qh2 {[%emt 0:08:10]} Nxf1 {[%emt 0:04:37]} 16. Kxf1 {[%emt 0:04:00]} Ng4 {[%emt 0:19:57]} 17. fxg4 {[%emt 0:03:38]} e5 {[%emt 0:00:31]} 18. h5 {[%emt 0:03:46]} exf4 {[%emt 0:02:55]} 19. Bxf4 {[%emt 0:01:26]} g5 {[%emt 0:11:35]} 20. Bxd6 {[%emt 0:07:11]} Bxd4 {[%emt 0:06:45]} 21. cxd4 {[%emt 0:02:02]} Qf6+ {[%emt 0:00:34]} 22. Qf2 {[%emt 0:19:23]} Qxd6 {[%emt 0:00:46]} 23. h6 {[%emt 0:00:13]} Kh7 {[%emt 0:03:35]} 24. b3 {[%emt 0:05:38]} Bxg4 {[%emt 0:04:53]} 25. Rg1 {[%emt 0:01:11] normal} Qe6 {[%emt 0:03:50] normal} 26. e5 {[%emt 0:01:43] normal} f6 {normal} 0-1

[Event "DVM U20w 2019"]
[Site "Braunschweig"]
[Date "2019.12.29"]
[Round "6"]
[White "Peglau, Charis"]
[Black "Visvikis, Kassandra"]
[Result "1-0"]
[ECO "C50"]
[WhiteElo "1728"]
[BlackElo "1568"]
[Annotator "NA"]
[PlyCount "85"]
[EventDate "2019.12.27"]
[EventType "team-tourn"]
[EventRounds "7"]
[EventCountry "GER"]
[SourceTitle "playchess.com"]
[Source "ChessBase"]
[SourceQuality "1"]
[WhiteTeam "Schachzentrum Seeblick"]
[BlackTeam "OSG Baden-Baden"]
[TimeControl "40/5400+30:1800+30"]

1. e4 {[%emt 0:00:00]} e5 {[%emt 0:00:00]} 2. Nc3 {[%emt 0:00:00]} Nc6 {[%emt 0:00:00]} 3. Bc4 {[%emt 0:00:00]} Nf6 {[%emt 0:00:25]} 4. Nf3 {[%emt 0:00:00]} Bc5 {[%emt 0:00:06]} 5. d3 {[%emt 0:00:08]} d6 {[%emt 0:00:29]} 6. Bg5 {[%emt 0:00:10]} h6 {[%emt 0:00:07]} 7. Bh4 {[%emt 0:00:07]} g5 {[%emt 0:00:58]} 8. Bg3 {[%emt 0:00:06]} Bg4 {[%emt 0:00:22]} 9. Na4 {[%emt 0:02:56]} Bb6 {[%emt 0:02:31]} 10. Nxb6 {[%emt 0:00:37]} axb6 {[%emt 0:00:06]} 11. c3 {[%emt 0:01:49]} Na5 {[%emt 0:03:09]} 12. Bb5+ {[%emt 0:00:53]} c6 {[%emt 0:00:30]} 13. Ba4 {[%emt 0:00:17]} b5 {[%emt 0:00:14]} 14. Bc2 {[%emt 0:00:15]} b6 {[%emt 0:00:51]} 15. h3 {[%emt 0:01:45]} Bh5 {[%emt 0:00:38]} 16. h4 {[%emt 0:04:06]} g4 {[%emt 0:03:16]} 17. Nd2 {[%emt 0:00:15]} Bg6 {[%emt 0:05:11]} 18. a4 {[%emt 0:05:17]} bxa4 {[%emt 0:02:20]} 19. Bxa4 {[%emt 0:00:15]} b5 {[%emt 0:00:13]} 20. Bc2 {[%emt 0:00:10]} h5 {[%emt 0:04:03]} 21. f4 {[%emt 0:05:19]} gxf3 {[%emt 0:03:32]} 22. gxf3 {[%emt 0:01:41]} Rg8 {[%emt 0:01:43]} 23. Bf2 {[%emt 0:01:03]} Bh7 {[%emt 0:03:39]} 24. Rg1 {[%emt 0:02:54]} Ke7 {[%emt 0:02:21]} 25. Ke2 {[%emt 0:01:00]} Nb7 {[%emt 0:03:40]} 26. Be3 {[%emt 0:04:18]} Nd7 {[%emt 0:04:39]} 27. Bb3 {[%emt 0:00:58]} Rxg1 {[%emt 0:01:54]} 28. Qxg1 {[%emt 0:00:28]} Rxa1 {[%emt 0:00:43]} 29. Qxa1 {[%emt 0:00:11]} Kf8 {[%emt 0:08:20]} 30. Bg5 {[%emt 0:03:08]} Qa5 {[%emt 0:05:18]} 31. Bh6+ {[%emt 0:05:30]} Ke8 {[%emt 0:01:09]} 32. Qxa5 {[%emt 0:02:19]} Nxa5 {[%emt 0:00:06]} 33. Ba2 {[%emt 0:00:09]} Nb6 {[%emt 0:07:55]} 34. b4 {[%emt 0:05:03]} Nb7 {[%emt 0:00:14]} 35. Nf1 {[%emt 0:02:55]} Nd8 {[%emt 0:05:28]} 36. Ng3 {[%emt 0:01:02]} Bg6 {[%emt 0:00:06]} 37. f4 {[%emt 0:04:01]} exf4 {[%emt 0:00:54]} 38. Bxf4 {[%emt 0:00:11]} Ke7 {[%emt 0:01:53]} 39. Bb3 {[%emt 0:01:16]} Ne6 {[%emt 0:03:00]} 40. Be3 {[%emt 0:00:35]} Nd7 {[%emt 0:00:45]} 41. c4 {[%emt 0:43:33]} Nc7 {[%emt 0:37:13]} 42. Kd2 {[%emt 0:01:43]} Ne5 {[%emt 0:01:31]} 43. c5 {[%emt 0:03:32] normal} 1-0

[Event "DVM U20w 2019"]
[Site "Braunschweig"]
[Date "2019.12.29"]
[Round "6"]
[White "Sokolowski, Judith"]
[Black "Sherif, Amina"]
[Result "1-0"]
[ECO "B06"]
[WhiteElo "1722"]
[BlackElo "1945"]
[Annotator "NA"]
[PlyCount "39"]
[EventDate "2019.12.27"]
[EventType "team-tourn"]
[EventRounds "7"]
[EventCountry "GER"]
[SourceTitle "playchess.com"]
[Source "ChessBase"]
[SourceQuality "1"]
[WhiteTeam "Düsseldorfer SK"]
[BlackTeam "TuRa Harksheide Norderstedt"]
[TimeControl "40/5400+30:1800+30"]

1. e4 g6 2. d4 Bg7 3. Nc3 c6 4. Be3 d5 5. e5 f6 6. f4 Nh6 7. Be2 O-O 8. Qd2 Ng4 9. O-O-O fxe5 10. fxe5 Nxe3 11. Qxe3 e6 12. Nf3 Nd7 13. h4 c5 14. dxc5 Qc7 15. h5 Nxe5 16. hxg6 Nxg6 17. Kb1 Qf4 18. Qd3 Bd7 19. Nxd5 exd5 20. Qxd5+ {normal} 1-0

[Event "DVM U20w 2019"]
[Site "Braunschweig"]
[Date "2019.12.29"]
[Round "6"]
[White "Doll, Rebecca"]
[Black "Peglau, Sarah"]
[Result "1/2-1/2"]
[ECO "C10"]
[WhiteElo "1659"]
[BlackElo "1760"]
[Annotator "NA"]
[PlyCount "53"]
[EventDate "2019.12.27"]
[EventType "team-tourn"]
[EventRounds "7"]
[EventCountry "GER"]
[SourceTitle "playchess.com"]
[Source "ChessBase"]
[SourceQuality "1"]
[WhiteTeam "OSG Baden-Baden"]
[BlackTeam "Schachzentrum Seeblick"]
[TimeControl "40/5400+30:1800+30"]

1. e4 {[%emt 0:00:00]} e6 {[%emt 0:00:00]} 2. d4 {[%emt 0:00:00]} d5 {[%emt 0:00:00]} 3. Nd2 {[%emt 0:00:00]} dxe4 {[%emt 0:00:13]} 4. Nxe4 {[%emt 0:00:00]} Bd7 {[%emt 0:00:15]} 5. Nf3 {[%emt 0:00:51]} Bc6 {[%emt 0:00:16]} 6. Bd3 {[%emt 0:02:00]} Nd7 {[%emt 0:00:08]} 7. O-O {[%emt 0:00:53]} Ngf6 {[%emt 0:00:05]} 8. Qe2 {[%emt 0:02:08]} Nxe4 {[%emt 0:00:33]} 9. Bxe4 {[%emt 0:00:12]} Bxe4 {[%emt 0:00:05]} 10. Qxe4 {[%emt 0:00:12]} c6 {[%emt 0:00:08]} 11. Bf4 {[%emt 0:04:47]} Nf6 {[%emt 0:04:40]} 12. Qe2 {[%emt 0:01:56]} Bd6 {[%emt 0:00:35]} 13. Bxd6 {[%emt 0:04:07]} Qxd6 {[%emt 0:00:01]} 14. Rfd1 {[%emt 0:00:50]} O-O {[%emt 0:00:19]} 15. Ne5 {[%emt 0:02:27]} Nd7 {[%emt 0:04:08]} 16. Rd3 {[%emt 0:05:25]} Rfd8 {[%emt 0:07:37]} 17. Rad1 {[%emt 0:02:14]} Qc7 {[%emt 0:04:18]} 18. h3 {[%emt 0:02:37]} h6 {[%emt 0:03:04]} 19. Qh5 {[%emt 0:14:39]} Nf6 {[%emt 0:03:12]} 20. Qf3 {[%emt 0:09:26]} Kf8 {[%emt 0:03:29]} 21. c4 {[%emt 0:09:00]} Rd6 {[%emt 0:07:41]} 22. Qg3 {[%emt 0:07:10]} Qe7 {[%emt 0:08:34]} 23. Qf4 {[%emt 0:12:01]} Rad8 {[%emt 0:03:07]} 24. R1d2 {[%emt 0:01:29]} Ke8 {[%emt 0:09:48]} 25. Qe3 {[%emt 0:04:28]} Nd7 {[%emt 0:02:40]} 26. Qg3 {[%emt 0:01:43]} Kf8 {[%emt 0:02:14]} 27. Qf3 {[%emt 0:00:44] normal} 1/2-1/2

[Event "DVM U20w 2019"]
[Site "Braunschweig"]
[Date "2019.12.29"]
[Round "6"]
[White "Biermann, Sophie"]
[Black "Wiesner, Paula"]
[Result "0-1"]
[ECO "D02"]
[WhiteElo "1645"]
[BlackElo "1955"]
[Annotator "NA"]
[PlyCount "104"]
[EventDate "2019.12.27"]
[EventType "team-tourn"]
[EventRounds "7"]
[EventCountry "GER"]
[SourceTitle "playchess.com"]
[Source "ChessBase"]
[SourceQuality "1"]
[WhiteTeam "SG Trier"]
[BlackTeam "SC Borussia Lichtenberg"]
[TimeControl "40/5400+30:1800+30"]

1. d4 {[%emt 0:00:00]} d5 {[%emt 0:00:00]} 2. Nf3 {[%emt 0:00:00]} Nf6 {[%emt 0:00:07]} 3. Bf4 {[%emt 0:00:25]} e6 {[%emt 0:00:40]} 4. e3 {[%emt 0:00:35]} Bd6 {[%emt 0:02:19]} 5. Bxd6 {[%emt 0:01:37]} Qxd6 {[%emt 0:00:10]} 6. c3 {[%emt 0:00:29]} O-O {[%emt 0:00:35]} 7. Bd3 {[%emt 0:01:06]} Nbd7 {[%emt 0:00:52]} 8. Nbd2 {[%emt 0:00:34]} e5 {[%emt 0:01:28]} 9. dxe5 {[%emt 0:06:09]} Nxe5 {[%emt 0:00:05]} 10. Nxe5 {[%emt 0:01:43]} Qxe5 {[%emt 0:00:04]} 11. Nf3 {[%emt 0:01:40]} Qe7 {[%emt 0:01:11]} 12. h3 {[%emt 0:02:39]} b6 {[%emt 0:04:35]} 13. Qc2 {[%emt 0:03:20]} Bb7 {[%emt 0:01:42]} 14. O-O {[%emt 0:04:07]} c5 {[%emt 0:01:42]} 15. Qe2 {[%emt 0:07:37]} Ne4 16. c4 {[%emt 0:04:25]} dxc4 {[%emt 0:20:53]} 17. Bxc4 {[%emt 0:01:00]} Qf6 {[%emt 0:06:06]} 18. Rad1 {[%emt 0:09:36]} Rad8 {[%emt 0:00:39]} 19. Nh2 {[%emt 0:03:56]} Qc6 {[%emt 0:16:21]} 20. Nf3 {[%emt 0:05:52]} Ng5 {[%emt 0:02:54]} 21. Bb5 {[%emt 0:16:39]} Nxf3+ {[%emt 0:01:10]} 22. Qxf3 {[%emt 0:00:44]} Qxf3 {[%emt 0:00:10]} 23. gxf3 {[%emt 0:00:06]} Bxf3 {[%emt 0:00:08]} 24. Rd7 {[%emt 0:03:47]} Rxd7 {[%emt 0:02:13]} 25. Bxd7 {[%emt 0:00:07]} Rd8 {[%emt 0:02:41]} 26. Ba4 {[%emt 0:02:15]} Rd2 {[%emt 0:01:13]} 27. Rb1 {[%emt 0:02:00]} g6 {[%emt 0:07:17]} 28. Bb3 {[%emt 0:02:24]} b5 {[%emt 0:01:30]} 29. a3 {[%emt 0:01:41]} c4 {[%emt 0:00:50]} 30. Ba2 {[%emt 0:01:16]} c3 {[%emt 0:03:45]} 31. Bxf7+ {[%emt 0:00:38]} Kxf7 {[%emt 0:00:09]} 32. bxc3 {[%emt 0:00:09]} a6 {[%emt 0:00:15]} 33. Rb4 {[%emt 0:02:26]} Ke6 {[%emt 0:01:51]} 34. a4 {[%emt 0:00:47]} bxa4 {[%emt 0:01:10]} 35. Rxa4 {[%emt 0:00:13]} Be2 {[%emt 0:00:35]} 36. Rh4 {[%emt 0:04:07]} h5 {[%emt 0:03:47]} 37. Rb4 {[%emt 0:01:07]} a5 {[%emt 0:01:38]} 38. Ra4 {[%emt 0:01:03]} Rd5 {[%emt 0:00:18]} 39. Ra2 {[%emt 0:01:03]} Bc4 {[%emt 0:01:23]} 40. Ra3 {[%emt 0:00:49]} Rb5 {[%emt 0:01:17]} 41. Kg2 {[%emt 0:31:29]} Bb3 {[%emt 0:30:34]} 42. Kf3 {[%emt 0:00:58]} Ke5 {[%emt 0:00:42]} 43. Ra1 {[%emt 0:00:25]} a4 {[%emt 0:00:22]} 44. Ke2 {[%emt 0:00:25]} Kd5 {[%emt 0:02:21]} 45. Kd3 {[%emt 0:00:27]} Rb6 {[%emt 0:00:43]} 46. Ra3 {[%emt 0:00:29]} Kc5 {[%emt 0:00:28]} 47. e4 {[%emt 0:01:13]} Rd6+ {[%emt 0:00:45]} 48. Ke2 {[%emt 0:00:19]} Kc4 {[%emt 0:00:42]} 49. e5 {[%emt 0:00:24]} Re6 {[%emt 0:01:06]} 50. f4 {[%emt 0:00:40]} Kxc3 {[%emt 0:00:56]} 51. Ra1 {[%emt 0:00:28]} Kb2 {[%emt 0:00:10]} 52. Rg1 {[%emt 0:00:45]} a3 {[%emt 0:00:18] normal} 0-1

[Event "DVM U20w 2019"]
[Site "Braunschweig"]
[Date "2019.12.29"]
[Round "6"]
[White "Schiewe, Nadin"]
[Black "Joers, Pia-Milena"]
[Result "1/2-1/2"]
[ECO "D04"]
[WhiteElo "1629"]
[BlackElo "1646"]
[Annotator "NA"]
[PlyCount "52"]
[EventDate "2019.12.27"]
[EventType "team-tourn"]
[EventRounds "7"]
[EventCountry "GER"]
[SourceTitle "playchess.com"]
[Source "ChessBase"]
[SourceQuality "1"]
[WhiteTeam "Leegebrucher SF"]
[BlackTeam "SG Güstrow/Teterow"]
[TimeControl "40/5400+30:1800+30"]

1. d4 {[%emt 0:00:00]} Nf6 {[%emt 0:00:00]} 2. Nf3 {[%emt 0:00:00]} d5 {[%emt 0:00:02]} 3. e3 {[%emt 0:00:00]} Bg4 {[%emt 0:00:28]} 4. Nbd2 {[%emt 0:00:54]} e6 {[%emt 0:00:29]} 5. c3 {[%emt 0:01:19]} Bd6 {[%emt 0:06:05]} 6. Qc2 {[%emt 0:01:10]} Bf5 {[%emt 0:00:32]} 7. Bd3 {[%emt 0:00:47]} Bxd3 {[%emt 0:00:13]} 8. Qxd3 {[%emt 0:00:07]} O-O {[%emt 0:00:21]} 9. e4 {[%emt 0:01:26]} dxe4 {[%emt 0:01:47]} 10. Nxe4 {[%emt 0:00:09]} Be7 {[%emt 0:01:15]} 11. Bf4 {[%emt 0:04:19]} c6 {[%emt 0:09:48]} 12. g4 {[%emt 0:16:20]} Nxe4 {[%emt 0:14:26]} 13. Qxe4 {[%emt 0:00:14]} Nd7 {[%emt 0:03:04]} 14. g5 {[%emt 0:01:43]} Nb6 {[%emt 0:08:09]} 15. h4 {[%emt 0:04:30]} Qd5 {[%emt 0:03:19]} 16. Qe2 {[%emt 0:04:55]} c5 {[%emt 0:01:46]} 17. dxc5 {[%emt 0:09:27]} Bxc5 {[%emt 0:01:42]} 18. h5 {[%emt 0:01:19]} Rae8 {[%emt 0:10:30]} 19. Be5 {[%emt 0:08:16]} Nd7 {[%emt 0:07:36]} 20. Rd1 {[%emt 0:03:51]} Qc6 {[%emt 0:00:27]} 21. Rg1 {[%emt 0:01:54]} Rd8 {[%emt 0:13:58]} 22. Nd4 {[%emt 0:11:21]} Bxd4 {[%emt 0:01:15]} 23. Rxd4 {[%emt 0:00:58]} Nxe5 {[%emt 0:00:26]} 24. Qxe5 {[%emt 0:00:13]} Rxd4 {[%emt 0:00:22]} 25. Qxd4 {[%emt 0:01:39]} e5 {[%emt 0:01:45]} 26. Qd3 {[%emt 0:02:57]} Qe6 {[%emt 0:04:17] normal} 1/2-1/2

[Event "DVM U20w 2019"]
[Site "Braunschweig"]
[Date "2019.12.29"]
[Round "6"]
[White "Pavlov, Liliane"]
[Black "Fock, Amina"]
[Result "1-0"]
[ECO "E11"]
[WhiteElo "1623"]
[BlackElo "1807"]
[Annotator "NA"]
[PlyCount "68"]
[EventDate "2019.12.27"]
[EventType "team-tourn"]
[EventRounds "7"]
[EventCountry "GER"]
[SourceTitle "playchess.com"]
[Source "ChessBase"]
[SourceQuality "1"]
[WhiteTeam "SC Bavaria Regensburg"]
[BlackTeam "SK Nordhorn-Blanke"]
[TimeControl "40/5400+30:1800+30"]

1. d4 {[%emt 0:00:00]} Nf6 {[%emt 0:00:00]} 2. c4 {[%emt 0:00:00]} e6 {[%emt 0:00:00]} 3. Nf3 {[%emt 0:00:00]} Bb4+ {[%emt 0:00:00]} 4. Bd2 {[%emt 0:00:45]} a5 {[%emt 0:00:08]} 5. a3 {[%emt 0:00:45]} Be7 {[%emt 0:04:02]} 6. Nc3 {[%emt 0:00:32]} d5 {[%emt 0:02:01]} 7. g3 {[%emt 0:00:32]} b6 {[%emt 0:02:23]} 8. Bg2 {[%emt 0:02:16]} Bb7 {[%emt 0:01:01]} 9. b3 {[%emt 0:02:33]} Nbd7 {[%emt 0:00:58]} 10. O-O {[%emt 0:01:46]} Ne4 {[%emt 0:06:03]} 11. Nxe4 {[%emt 0:05:35]} dxe4 {[%emt 0:00:08]} 12. Ne1 {[%emt 0:00:22]} e5 {[%emt 0:02:48]} 13. e3 {[%emt 0:03:43]} exd4 {[%emt 0:02:33]} 14. exd4 {[%emt 0:00:38]} Bf6 {[%emt 0:00:20]} 15. Be3 {[%emt 0:01:27]} c5 {[%emt 0:04:42]} 16. Nc2 {[%emt 0:04:15]} cxd4 {[%emt 0:02:12]} 17. Bxd4 {[%emt 0:02:50]} Nc5 {[%emt 0:01:52]} 18. Bxf6 {[%emt 0:01:53]} Qxf6 {[%emt 0:00:20]} 19. b4 {[%emt 0:00:34]} Nb3 {[%emt 0:01:15]} 20. Ra2 {[%emt 0:02:58]} Rd8 {[%emt 0:03:33]} 21. Qh5 {[%emt 0:05:54]} Rd2 {[%emt 0:03:46]} 22. Qb5+ {[%emt 0:07:32]} Ke7 {[%emt 0:08:20]} 23. bxa5 {[%emt 0:01:45]} Nxa5 {[%emt 0:04:08]} 24. Qb4+ {[%emt 0:02:01]} Rd6 {[%emt 0:03:41]} 25. c5 {[%emt 0:01:35]} bxc5 {[%emt 0:01:54]} 26. Qxa5 {[%emt 0:01:06]} Rc8 {[%emt 0:06:32]} 27. Ne3 {[%emt 0:04:34]} Qe6 {[%emt 0:02:13]} 28. Rc2 {[%emt 0:01:30]} Ba6 {[%emt 0:03:04]} 29. Re1 {[%emt 0:00:38]} Bd3 {[%emt 0:09:29]} 30. Rxc5 {[%emt 0:02:39]} Rxc5 {[%emt 0:02:24]} 31. Qxc5 {[%emt 0:00:13]} g6 {[%emt 0:01:24]} 32. a4 {[%emt 0:03:06]} Qa2 {[%emt 0:03:02]} 33. a5 {[%emt 0:01:49]} Kd7 {[%emt 0:03:11]} 34. Rc1 {[%emt 0:04:08] normal} Qa4 {[%emt 0:02:56] normal} 1-0

[Event "DVM U20w 2019"]
[Site "Braunschweig"]
[Date "2019.12.29"]
[Round "6"]
[White "Giede, Anna-Blume"]
[Black "Cerkez, Lorena"]
[Result "1-0"]
[ECO "C00"]
[WhiteElo "1582"]
[BlackElo "1000"]
[Annotator "NA"]
[PlyCount "84"]
[EventDate "2019.12.27"]
[EventType "team-tourn"]
[EventRounds "7"]
[EventCountry "GER"]
[SourceTitle "playchess.com"]
[Source "ChessBase"]
[SourceQuality "1"]
[WhiteTeam "TuRa Harksheide Norderstedt"]
[BlackTeam "Düsseldorfer SK"]
[TimeControl "40/5400+30:1800+30"]

1. e4 {[%emt 0:00:00]} e6 {[%emt 0:00:00]} 2. d3 {[%emt 0:00:00]} d5 {[%emt 0:00:00]} 3. Nd2 {[%emt 0:00:00]} h6 {[%emt 0:02:35]} 4. Ngf3 {[%emt 0:01:34]} Nc6 {[%emt 0:00:11]} 5. g3 {[%emt 0:00:29]} e5 {[%emt 0:00:40]} 6. Bg2 {[%emt 0:05:45]} Nf6 {[%emt 0:00:33]} 7. O-O {[%emt 0:05:44]} Be6 {[%emt 0:05:38]} 8. Re1 {[%emt 0:03:52]} d4 {[%emt 0:10:03]} 9. Nf1 {[%emt 0:19:07]} Bb4 {[%emt 0:02:31]} 10. Bd2 {[%emt 0:00:46]} Bxd2 {[%emt 0:02:53]} 11. Qxd2 {[%emt 0:00:11]} Qd7 {[%emt 0:01:24]} 12. b4 {[%emt 0:23:30]} a6 {[%emt 0:00:53]} 13. c4 {[%emt 0:15:31]} Bg4 {[%emt 0:09:35]} 14. b5 {[%emt 0:01:31]} Bxf3 {[%emt 0:00:25]} 15. bxc6 {[%emt 0:00:18]} Qxc6 {[%emt 0:00:11]} 16. Bxf3 {[%emt 0:00:03]} O-O {[%emt 0:00:29]} 17. Qa5 {[%emt 0:01:48]} Rfe8 {[%emt 0:01:38]} 18. Nd2 {[%emt 0:00:34]} b6 {[%emt 0:00:36]} 19. Qa3 {[%emt 0:00:44]} Qe6 {[%emt 0:01:13]} 20. Bg2 {[%emt 0:02:47]} Ng4 {[%emt 0:04:07]} 21. h3 {[%emt 0:02:55]} Nf6 {[%emt 0:00:17]} 22. Qb2 {[%emt 0:03:54]} Rab8 {[%emt 0:00:25]} 23. a4 {[%emt 0:03:56]} a5 {[%emt 0:00:29]} 24. Qc2 {[%emt 0:02:52]} Nd7 {[%emt 0:00:17]} 25. Nb3 {[%emt 0:00:59]} Qe7 {[%emt 0:00:17]} 26. Rec1 {[%emt 0:01:01]} Nc5 {[%emt 0:00:21]} 27. Nxc5 {[%emt 0:00:16]} Qxc5 {[%emt 0:00:07]} 28. Rab1 {[%emt 0:00:47]} c6 {[%emt 0:00:27]} 29. Bf3 {[%emt 0:01:09]} Rb7 {[%emt 0:00:22]} 30. Kg2 {[%emt 0:00:55]} Reb8 {[%emt 0:00:59]} 31. Qd1 {[%emt 0:00:42]} Rc7 {[%emt 0:01:04]} 32. Qd2 {[%emt 0:00:46]} Rcb7 {[%emt 0:00:38]} 33. Bg4 {[%emt 0:00:48]} Qe7 {[%emt 0:00:34]} 34. Rb2 {[%emt 0:00:51]} Qa3 {[%emt 0:01:11]} 35. Bd1 {[%emt 0:00:25]} Qc5 {[%emt 0:00:29]} 36. Rbb1 {[%emt 0:00:26]} Qe7 {[%emt 0:00:54]} 37. Rb2 {[%emt 0:00:48]} Qd6 {[%emt 0:00:26]} 38. Rcb1 {[%emt 0:00:13]} Qc5 {[%emt 0:00:15]} 39. Qc1 {[%emt 0:00:33]} Kf8 {[%emt 0:01:49]} 40. Rb3 {[%emt 0:00:24]} Kg8 {[%emt 0:00:28]} 41. Qa3 {[%emt 0:30:38]} Qxa3 {[%emt 0:30:53]} 42. Rxa3 {[%emt 0:00:03]} Kf8 {[%emt 0:00:17] normal} 1-0

[Event "DVM U20w 2019"]
[Site "Braunschweig"]
[Date "2019.12.29"]
[Round "6"]
[White "Puls, Luisa"]
[Black "Kung, Fanny"]
[Result "1-0"]
[ECO "B01"]
[WhiteElo "1551"]
[BlackElo "1426"]
[Annotator "NA"]
[PlyCount "41"]
[EventDate "2019.12.27"]
[EventType "team-tourn"]
[EventRounds "7"]
[EventCountry "GER"]
[SourceTitle "playchess.com"]
[Source "ChessBase"]
[SourceQuality "1"]
[WhiteTeam "SG Güstrow/Teterow"]
[BlackTeam "Leegebrucher SF"]
[TimeControl "40/5400+30:1800+30"]

1. e4 {[%emt 0:00:00]} d5 {[%emt 0:00:00]} 2. exd5 {[%emt 0:01:24]} Qxd5 {[%emt 0:00:00]} 3. Nc3 {[%emt 0:00:36]} Qd6 {[%emt 0:00:07]} 4. d3 {[%emt 0:03:08]} Nf6 {[%emt 0:00:34]} 5. Nf3 {[%emt 0:01:41]} a6 {[%emt 0:00:19]} 6. g3 {[%emt 0:02:46]} Bg4 {[%emt 0:01:11]} 7. Bg2 {[%emt 0:01:18]} e6 {[%emt 0:01:38]} 8. O-O {[%emt 0:01:58]} Nc6 {[%emt 0:01:42]} 9. Re1 {[%emt 0:04:52]} Be7 {[%emt 0:02:33]} 10. Be3 {[%emt 0:06:12]} O-O {[%emt 0:00:49]} 11. Qd2 {[%emt 0:06:03]} Rad8 {[%emt 0:06:01]} 12. Bf4 {[%emt 0:04:50]} Qd7 {[%emt 0:00:45]} 13. Ne5 {[%emt 0:07:52]} Nxe5 {[%emt 0:01:23]} 14. Bxe5 {[%emt 0:00:22]} c6 {[%emt 0:03:56]} 15. Ne4 {[%emt 0:05:42]} Nxe4 {[%emt 0:04:20]} 16. Bxe4 {[%emt 0:01:19]} f6 {[%emt 0:06:20]} 17. Qf4 {[%emt 0:08:37]} Bh5 {[%emt 0:05:02]} 18. Qh4 {[%emt 0:03:18]} Qe8 {[%emt 0:04:19]} 19. g4 {[%emt 0:17:33]} Bxg4 {[%emt 0:08:54]} 20. Qxh7+ {[%emt 0:00:35]} Kf7 {[%emt 0:00:07]} 21. Bg6# {normal} 1-0